fUSD/lending_fUSD_20241220
["ID","MTS","AMOUNT","RATE_DAILY","PERIOD"]
[346043959,1734655846011,-500.0,0.00024999,4]
[346043960,1734655846020,-2529.19,0.00024999,4]
[346043962,1734655846030,-1036.23,0.00024999,4]
[346043964,1734655846039,-500.0,0.00024999,4]
[346043966,1734655846049,-2529.19,0.00024999,4]
[346043968,1734655846059,-1036.23,0.00024999,4]
[346043970,1734655846068,-500.0,0.00024999,4]
[346043972,1734655846077,-2529.19,0.00024999,4]
[346043974,1734655846086,-1036.23,0.00024999,4]
[346043976,1734655846095,-500.0,0.00024999,4]
[346043978,1734655846105,-1036.23,0.00024999,4]
[346043980,1734655846113,-2529.19,0.00024999,4]
[346043982,1734655846123,-500.0,0.00024999,4]
[346043984,1734655846131,-1036.39,0.00024999,4]
[346043986,1734655846140,-2529.19,0.00024999,4]
[346043988,1734655846149,-500.0,0.00024999,4]
[346043990,1734655846158,-2529.19,0.00024999,4]
[346043992,1734655846167,-500.0,0.00024999,4]
[346043994,1734655846178,-500.0,0.00024999,4]
[346043996,1734655846187,-2529.19,0.00024999,4]
[346043998,1734655846196,-500.0,0.00024999,4]
[346044000,1734655846205,-2529.19,0.00024999,4]
[346044002,1734655846214,-500.0,0.00024999,4]
[346044004,1734655846223,-2529.19,0.00024999,4]
[346044006,1734655846236,-331.59179373,0.00024999,4]
[346044008,1734655846245,-2529.19,0.00024999,4]
[346044010,1734655846254,-2529.19,0.00024999,4]
[346044012,1734655846263,-2529.21,0.00024999,4]
[346044014,1734655846272,-500.0,0.00024999,4]
[346044016,1734655846281,-538.07,0.00024999,4]
[346044017,1734655846290,-538.07,0.00024999,4]
[346044019,1734655846299,-538.07,0.00024999,4]
[346044021,1734655846309,-538.07,0.00024999,4]
[346044023,1734655846320,-538.07,0.00024999,4]
[346044025,1734655846329,-500.0,0.00024999,4]
[346044027,1734655846338,-538.07,0.00024999,4]
[346044028,1734655846347,-500.0,0.00024999,4]
[346044030,1734655846356,-538.07,0.00024999,4]
[346044032,1734655846365,-500.0,0.00024999,4]
[346044034,1734655846374,-500.0,0.00024999,4]
[346044036,1734655846383,-538.07,0.00024999,4]
[346044038,1734655846392,-236.86168526,0.00024999,4]
[346044040,1734655846401,-538.07,0.00024999,4]
[346044042,1734655846410,-538.07,0.00024999,4]
[346044044,1734655846419,-538.07,0.00024999,4]
[346044046,1734655846430,-538.07,0.00024999,4]
[346044048,1734655846439,-538.07,0.00024999,4]
[346044050,1734655846447,-538.07,0.00024999,4]
[346044051,1734655846456,-538.07,0.00024999,4]
[346044052,1734655846466,-538.07,0.00024999,4]
[346044053,1734655846475,-538.07,0.00024999,4]
[346044054,1734655846483,-538.07,0.00024999,4]
[346044055,1734655846493,-538.07,0.00024999,4]
[346044056,1734655846504,-538.07,0.00024999,4]
[346044057,1734655846513,-538.07,0.00024999,4]
[346044058,1734655846522,-538.14583515,0.00024999,4]
[346044059,1734655846532,-267.3,0.00024999,4]
[346044060,1734655846541,-503.29049457,0.00024999,4]
[346044061,1734655846551,-500.0,0.00024999,4]
[346044062,1734655846560,-500.0,0.00024999,4]
[346044063,1734655846569,-500.0,0.00024999,4]
[346044064,1734655846579,-500.0,0.00024999,4]
[346044065,1734655846588,-500.0,0.00024999,4]
[346044066,1734655846597,-500.0,0.00024999,4]
[346044067,1734655846606,-500.0,0.00024999,4]
[346044068,1734655846616,-500.0,0.00024999,4]
[346044069,1734655846625,-500.0,0.00024999,4]
[346044070,1734655846634,-500.0,0.00024999,4]
[346044071,1734655846643,-500.0,0.00024999,4]
[346044072,1734655846653,-500.0,0.00024999,4]
[346044073,1734655846662,-500.0,0.00024999,4]
[346044074,1734655846671,-500.0,0.00024999,4]
[346044075,1734655846683,-500.0,0.00024999,4]
[346044076,1734655846693,-500.0,0.00024999,4]
[346044077,1734655846702,-544.98583172,0.00024999,4]
[346044078,1734655846711,-500.0,0.00024999,4]
[346044079,1734655846721,-462.23978751,0.00024999,4]
[346044080,1734655846730,-500.0,0.00024999,4]
[346044081,1734655846740,-500.0,0.00024999,4]
[346044082,1734655846749,-500.0,0.00024999,4]
[346044083,1734655846773,-500.0,0.00024999,4]
[346044084,1734655846791,-500.0,0.00024999,4]
[346044085,1734655846800,-150.0,0.00024999,2]
[346044086,1734655846809,-500.0,0.00024999,4]
[346044087,1734655846818,-500.0,0.00024999,4]
[346044088,1734655846828,-500.0,0.00024999,4]
[346044089,1734655846837,-500.0,0.00024999,4]
[346044090,1734655846847,-500.0,0.00024999,4]
[346044091,1734655846856,-599.02,0.00024999,4]
[346044092,1734655846866,-500.0,0.00024999,4]
[346044093,1734655846875,-150.0,0.00024999,2]
[346044094,1734655846885,-500.0,0.00024999,4]
[346044095,1734655846894,-500.0,0.00024999,4]
[346044096,1734655846903,-150.0,0.00024999,2]
[346044097,1734655846913,-318.30983059,0.00024999,4]
[346044098,1734655846922,-150.0,0.00024999,2]
[346044099,1734655846934,-150.0,0.00024999,2]
[346044100,1734655846943,-150.0,0.00024999,2]
[346044101,1734655846953,-500.0,0.00024999,4]
[346044102,1734655846962,-500.0,0.00024999,4]
[346044103,1734655846971,-500.0,0.00024999,4]
[346044104,1734655846981,-500.0,0.00024999,4]
[346044105,1734655846990,-150.0,0.00024999,2]
[346044106,1734655846999,-500.0,0.00024999,4]
[346044107,1734655847008,-500.0,0.00024999,4]
[346044108,1734655847017,-500.0,0.00024999,4]
[346044109,1734655847026,-150.0,0.00024999,2]
[346044110,1734655847036,-500.0,0.00024999,4]
[346044111,1734655847045,-500.0,0.00024999,4]
[346044112,1734655847054,-500.0,0.00024999,4]
[346044113,1734655847063,-150.0,0.00024999,2]
[346044114,1734655847072,-500.0,0.00024999,4]
[346044115,1734655847082,-500.0,0.00024999,4]
[346044116,1734655847091,-500.0,0.00024999,4]
[346044117,1734655847101,-150.0,0.00024999,2]
[346044118,1734655847110,-500.0,0.00024999,4]
[346044119,1734655847120,-341.30525494,0.00024999,4]
[346044120,1734655847129,-500.0,0.00024999,4]
[346044121,1734655847138,-150.0,0.00024999,2]
[346044122,1734655847147,-500.0,0.00024999,4]
[346044123,1734655847157,-500.0,0.00024999,4]
[346044124,1734655847166,-500.0,0.00024999,4]
[346044125,1734655847177,-150.0,0.00024999,2]
[346044126,1734655847186,-500.0,0.00024999,4]
[346044127,1734655847195,-500.0,0.00024999,4]
[346044128,1734655847204,-500.0,0.00024999,4]
[346044129,1734655847213,-150.0,0.00024999,2]
[346044130,1734655847222,-500.0,0.00024999,4]
[346044131,1734655847233,-500.0,0.00024999,4]
[346044132,1734655847242,-500.0,0.00024999,4]
[346044133,1734655847251,-500.0,0.00024999,4]
[346044134,1734655847260,-500.0,0.00024999,4]
[346044135,1734655847271,-500.0,0.00024999,4]
[346044136,1734655847280,-500.0,0.00024999,4]
[346044137,1734655847289,-150.0,0.00024999,2]
[346044138,1734655847298,-500.0,0.00024999,4]
[346044139,1734655847308,-500.0,0.00024999,4]
[346044140,1734655847319,-500.0,0.00024999,4]
[346044141,1734655847328,-500.0,0.00024999,4]
[346044142,1734655847337,-500.0,0.00024999,4]
[346044143,1734655847347,-150.0,0.00024999,2]
[346044144,1734655847356,-500.0,0.00024999,4]
[346044145,1734655847366,-427.87,0.00024999,4]
[346044146,1734655847375,-500.0,0.00024999,4]
[346044147,1734655847385,-500.0,0.00024999,4]
[346044148,1734655847396,-150.0,0.00024999,2]
[346044149,1734655847405,-500.0,0.00024999,4]
[346044150,1734655847414,-500.0,0.00024999,4]
[346044151,1734655847424,-500.0,0.00024999,4]
[346044152,1734655847434,-500.0,0.00024999,4]
[346044153,1734655847443,-500.0,0.00024999,4]
[346044154,1734655847452,-500.0,0.00024999,4]
[346044155,1734655847461,-150.0,0.00024999,2]
[346044156,1734655847471,-495.49,0.00024999,4]
[346044157,1734655847480,-500.0,0.00024999,4]
[346044158,1734655847489,-500.0,0.00024999,4]
[346044159,1734655847498,-420.25,0.00024999,4]
[346044160,1734655847507,-500.0,0.00024999,4]
[346044161,1734655847517,-150.0,0.00024999,2]
[346044162,1734655847526,-150.0,0.00024999,2]
[346044163,1734655847535,-500.0,0.00024999,4]
[346044164,1734655847543,-150.0,0.00024999,2]
[346044165,1734655847553,-242.7130779,0.00024999,4]
[346044166,1734655847563,-150.0,0.00024999,2]
[346044167,1734655847573,-150.0,0.00024999,2]
[346044168,1734655847582,-174.78517118,0.00024999,2]
[346044169,1734655847592,-500.0,0.00024999,4]
[346044170,1734655847601,-500.0,0.00024999,4]
[346044171,1734655847610,-500.0,0.00024999,4]
[346044172,1734655847620,-500.0,0.00024999,4]
[346044173,1734655847629,-500.0,0.00024999,4]
[346044174,1734655847638,-500.0,0.00024999,4]
[346044175,1734655847648,-500.0,0.00024999,4]
[346044176,1734655847657,-500.0,0.00024999,4]
[346044177,1734655847666,-500.0,0.00024999,4]
[346044178,1734655847677,-500.0,0.00024999,4]
[346044179,1734655847686,-500.0,0.00024999,4]
[346044180,1734655847825,-500.0,0.00024999,4]
[346044181,1734655847834,-500.0,0.00024999,4]
[346044182,1734655847844,-500.0,0.00024999,4]
[346044183,1734655847853,-500.0,0.00024999,4]
[346044184,1734655847862,-500.0,0.00024999,4]
[346044185,1734655847872,-743.0,0.00025,2]
[346044186,1734655847881,-2841.21645292,0.00025,2]
[346044187,1734655847890,-259.73159323,0.00025,3]
[346044188,1734655847899,-296666.16986675,0.00025,3]
[346044189,1734655847908,-9566837.71291826,0.00025,2]
[346044190,1734655848092,-12303.44371058,0.00025,2]
[346044191,1734655848104,-3497.6150036,0.00025,2]
[346044192,1734655848115,-1944.0,0.00025,2]
[346044193,1734655848136,-8956.1,0.00025,2]
[346044194,1734655848148,-820.000011,0.00025,2]
[346044195,1734655848159,-594.99998642,0.00025,2]
[346044196,1734655848170,-13643.21630534,0.00025,2]
[346044197,1734655848183,-735.15365519,0.00025,2]
[346044198,1734655848199,-500.0,0.00024999,4]
[346044199,1734655848209,-16734.67888702,0.00025,2]
[346044200,1734655848293,-500.0,0.00023999,4]
[346044201,1734655848303,-226.8343378,0.00024995,2]
[346044202,1734655848314,-222.8939211,0.00024995,2]
[346044203,1734655848323,-218.9535045,0.00024995,2]
[346044204,1734655848333,-215.0130878,0.00024995,2]
[346044205,1734655848342,-211.0726711,0.00024995,2]
[346044206,1734655848351,-368.19919791,0.00024998,4]
[346044207,1734655848360,-500.0,0.00024998,4]
[346044208,1734655848370,-500.0,0.00024999,4]
[346044209,1734655848379,-500.0,0.00024999,4]
[346044210,1734655848389,-257.23,0.00024999,4]
[346044211,1734655848398,-500.0,0.00024999,4]
[346044212,1734655848407,-86307.07068654,0.00025,2]
[346044213,1734655848419,-499.63985511,0.00025,2]
[346044214,1734655848435,-207.1322545,0.00024995,2]
[346044215,1734655848444,-466.14865774,0.00025,2]
[346044216,1734655848456,-262.520001,0.00025,2]
[346044217,1734655848467,-191100.34719458,0.00025,2]
[346044218,1734655848486,-500.0,0.00024998,4]
[346044219,1734655848496,-500.0,0.00024999,4]
[346044220,1734655848506,-110.384,0.00025,2]
[346044221,1734655848518,-968.43871744,0.00025,2]
[346044222,1734655848529,-1272.5779999,0.00025,2]
[346044223,1734655848540,-854.04481061,0.00025,2]
[346044224,1734655848551,-19354.47290523,0.00025,2]
[346044225,1734655848567,-432.19923863,0.00024999,4]
[346044226,1734655848577,-4041.50076137,0.00025,2]
[346044227,1734655848588,-9080.37054195,0.00025,2]
[346044228,1734655848600,-250.81915,0.00025,2]
[346044229,1734655848633,-500.0,0.00023999,4]
[346044230,1734655848642,-500.0,0.00023999,4]
[346044231,1734655848651,-500.0,0.00024998,4]
[346044232,1734655848661,-500.0,0.00024999,4]
[346044233,1734655848671,-500.0,0.00024999,4]
[346044234,1734655848682,-500.0,0.00024999,4]
[346044235,1734655848692,-9193.4031788,0.00025,2]
[346044236,1734655848703,-47760.0,0.00025,2]
[346044237,1734655848714,-3462.94084528,0.00025,2]
[346044238,1734655848812,-500.0,0.00024998,4]
[346044239,1734655848822,-2899.55696685,0.00025,2]
[346044240,1734655848833,-30579.78,0.00025,2]
[346044241,1734655848849,-500.0,0.00024999,4]
[346044242,1734655848859,-429.26652671,0.00025,2]
[346044243,1734655848870,-829.00113871,0.00025,2]
[346044244,1734655848882,-466629.83988155,0.00025,2]
[346044245,1734655848972,-500.0,0.00024999,4]
[346044246,1734655848981,-500.0,0.00024999,4]
[346044247,1734655848991,-500.0,0.00024999,4]
[346044248,1734655849001,-500.0,0.00024999,4]
[346044249,1734655849010,-500.0,0.00024999,4]
[346044250,1734655849020,-500.0,0.00024999,4]
[346044251,1734655849029,-173.4500005,0.00024999,4]
[346044252,1734655849041,-326.5499995,0.00024999,4]
[346044253,1734655849050,-500.0,0.00024999,4]
[346044254,1734655849059,-500.0,0.00024999,4]
[346044255,1734655849069,-500.0,0.00024999,4]
[346044256,1734655849078,-500.0,0.00024999,4]
[346044257,1734655849087,-500.0,0.00024999,4]
[346044258,1734655849096,-263.45,0.00024999,4]
[346044259,1734655849108,-236.55,0.00024999,4]
[346044260,1734655849118,-374.8,0.00024999,4]
[346044261,1734655849127,-500.0,0.00024999,4]
[346044262,1734655849136,-500.0,0.00024999,4]
[346044263,1734655849145,-500.0,0.00024999,4]
[346044264,1734655849154,-192.94453,0.00024999,4]
[346044265,1734655849165,-307.05547,0.00024999,4]
[346044266,1734655849176,-500.0,0.00024999,4]
[346044267,1734655849185,-501.771067,0.00025,2]
[346044268,1734655849197,-1054.52743691,0.00025,2]
[346044269,1734655849208,-1548.59779158,0.00025,2]
[346044270,1734655849219,-359800.00000016,0.00025,2]
[346044271,1734655849232,-335.34502768,0.00025,2]
[346044272,1734655849245,-407.82269628,0.00025,2]
[346044273,1734655849259,-500.0,0.00024999,4]
[346044274,1734655849270,-58656.774,0.00025,2]
[346044275,1734655849281,-63852.57595984,0.00025,2]
[346044277,1734656069606,150.0,0.000225,30]
[346044278,1734656085154,154.29,0.00010137,2]
[346044282,1734656602727,500.0,0.00013699,2]
[346044283,1734656603091,500.0,0.00013699,2]
[346044286,1734656811129,-2210.23711824,0.0002,2]
[346044292,1734657031818,-3158.25288176,0.0002,2]
[346044293,1734657031828,-500.0,0.00021164,2]
[346044294,1734657031837,-215.61711825,0.00021637,2]
[346044295,1734657031851,-187.60288175,0.00021637,2]
[346044296,1734657031860,-151.437759,0.00023514,2]
[346044297,1734657031870,-772.56,0.00023648,2]
[346044298,1734657031879,-182.8,0.00023692,2]
[346044299,1734657031889,-250.0,0.00023698,2]
[346044300,1734657031898,-702.98896595,0.00023742,2]
[346044301,1734657031939,-38.08103405,0.00023742,2]
[346044302,1734657031949,-422.191,0.0002375,2]
[346044303,1734657031958,-1000.0,0.00023762,2]
[346044304,1734657031968,-271.97725572,0.00023779,2]
[346044305,1734657031977,-300.0,0.00023798,2]
[346044306,1734657031987,-2761.45071023,0.00023799,2]
[346044329,1734657037631,-6521.67119262,0.00023799,2]
[346044330,1734657037642,-519.07829482,0.00023799,2]
[346044331,1734657037693,-295.17364563,0.00023799,2]
[346044332,1734657037830,-19525.77939884,0.00023799,2]
[346044333,1734657037841,-312.27156458,0.00023799,2]
[346044334,1734657037854,-277.40089328,0.00023799,2]
[346044335,1734657037863,-166.201,0.000238,5]
[346044336,1734657037873,-5425.42951883,0.00023899,2]
[346044337,1734657037883,-757.25070126,0.00023899,2]
[346044338,1734657037902,-14959.6730032,0.00023899,2]
[346044339,1734657037912,-2030.8671,0.00023899,2]
[346044340,1734657037921,-2830.5263,0.000239,2]
[346044341,1734657037930,-403.22,0.000239,2]
[346044342,1734657037940,-155.95,0.00023981,30]
[346044343,1734657037949,-422.46206845,0.00023999,4]
[346044344,1734657037959,-500.0,0.00023999,4]
[346044346,1734657037968,-500.0,0.00023999,4]
[346044348,1734657037976,-166.68091234,0.00023999,4]
[346044350,1734657037985,-500.0,0.00023999,4]
[346044352,1734657037994,-500.0,0.00023999,2]
[346044354,1734657038003,-500.0,0.00023999,4]
[346044356,1734657038012,-10000.0,0.00024,2]
[346044358,1734657038022,-1146.0,0.0002425,2]
[346044360,1734657038031,-178.2770547,0.000245,2]
[346044362,1734657038040,-1146.0,0.000245,2]
[346044364,1734657038049,-150.0,0.00024658,2]
[346044366,1734657038058,-152.0,0.00024721,3]
[346044368,1734657038068,-1146.0,0.0002475,2]
[346044370,1734657038077,-500.0,0.0002475,2]
[346044372,1734657038086,-150.0,0.00024792,2]
[346044374,1734657038096,-1000.0,0.000248,2]
[346044376,1734657038106,-5125.6205,0.00024899,2]
[346044378,1734657038115,-2438.0,0.000249,2]
[346044380,1734657038124,-200.0,0.000249,2]
[346044382,1734657038134,-152.88,0.000249,31]
[346044384,1734657038143,-152.88,0.000249,31]
[346044386,1734657038151,-152.88,0.000249,31]
[346044388,1734657038161,-152.88,0.000249,31]
[346044390,1734657038169,-152.88,0.000249,31]
[346044391,1734657038178,-152.88,0.000249,31]
[346044394,1734657038187,-152.88,0.000249,31]
[346044396,1734657038197,-152.88,0.000249,31]
[346044397,1734657038206,-152.88,0.000249,31]
[346044398,1734657038214,-152.88,0.000249,31]
[346044399,1734657038223,-152.88,0.000249,31]
[346044400,1734657038232,-152.88,0.000249,31]
[346044402,1734657038242,-152.88,0.000249,31]
[346044403,1734657038250,-152.88,0.000249,31]
[346044404,1734657038259,-152.88,0.000249,31]
[346044405,1734657038268,-152.88,0.000249,31]
[346044406,1734657038278,-175.83007295,0.000249,2]
[346044407,1734657038287,-305.29302229,0.00024973,2]
[346044408,1734657038296,-500.0,0.00024973,2]
[346044409,1734657038305,-150.12201,0.00024995,3]
[346044410,1734657038315,-150.12201,0.00024995,4]
[346044411,1734657038324,-150.12201,0.00024995,5]
[346044412,1734657038334,-150.12201,0.00024995,6]
[346044413,1734657038344,-150.12201,0.00024995,7]
[346044414,1734657038355,-150.12201,0.00024995,10]
[346044415,1734657038364,-150.12201,0.00024996,3]
[346044416,1734657038374,-150.12201,0.00024996,4]
[346044417,1734657038384,-150.12201,0.00024996,5]
[346044418,1734657038394,-150.12201,0.00024996,6]
[346044419,1734657038403,-150.12201,0.00024996,7]
[346044420,1734657038413,-150.12201,0.00024996,10]
[346044421,1734657038422,-150.12201,0.00024996,11]
[346044422,1734657038431,-150.12201,0.00024996,12]
[346044423,1734657038440,-150.12201,0.00024996,13]
[346044424,1734657038449,-150.12201,0.00024996,14]
[346044425,1734657038459,-150.12201,0.00024997,14]
[346044426,1734657038468,-150.12201,0.00024997,13]
[346044427,1734657038477,-150.12201,0.00024997,12]
[346044428,1734657038487,-150.12201,0.00024997,11]
[346044429,1734657038497,-150.12201,0.00024997,10]
[346044430,1734657038507,-150.12201,0.00024997,3]
[346044431,1734657038516,-150.12201,0.00024997,4]
[346044432,1734657038526,-150.12201,0.00024997,5]
[346044433,1734657038536,-150.12201,0.00024997,6]
[346044434,1734657038545,-150.12201,0.00024997,7]
[346044435,1734657038555,-150.12201,0.00024997,10]
[346044436,1734657038564,-150.12201,0.00024997,11]
[346044437,1734657038574,-150.12201,0.00024997,12]
[346044438,1734657038585,-150.12201,0.00024997,13]
[346044439,1734657038596,-150.12201,0.00024997,14]
[346044440,1734657038609,-500.0,0.00024997,4]
[346044441,1734657038620,-500.0,0.00024997,4]
[346044442,1734657038630,-500.0,0.00024997,4]
[346044443,1734657038640,-500.0,0.00024997,4]
[346044444,1734657038649,-500.0,0.00024997,4]
[346044445,1734657038659,-500.0,0.00024997,4]
[346044446,1734657038670,-500.0,0.00024997,4]
[346044447,1734657038679,-500.0,0.00024997,4]
[346044448,1734657038688,-500.0,0.00024997,4]
[346044449,1734657038697,-500.0,0.00024997,4]
[346044450,1734657038707,-2845.51,0.00024997,4]
[346044451,1734657038716,-585.27,0.00024997,4]
[346044452,1734657038725,-500.0,0.00024997,4]
[346044453,1734657038734,-500.0,0.00024997,4]
[346044454,1734657038743,-500.0,0.00024997,4]
[346044455,1734657038753,-1020.08,0.00024997,4]
[346044456,1734657038762,-502.25,0.00024997,4]
[346044457,1734657038771,-500.0,0.00024997,4]
[346044458,1734657038780,-500.0,0.00024997,4]
[346044459,1734657038790,-500.0,0.00024997,4]
[346044460,1734657038799,-500.0,0.00024997,4]
[346044461,1734657038808,-500.0,0.00024997,4]
[346044462,1734657038818,-572.58,0.00024997,4]
[346044463,1734657038827,-500.0,0.00024997,4]
[346044464,1734657038836,-640.44864667,0.00024998,2]
[346044465,1734657038846,-500.0,0.00024998,2]
[346044466,1734657038856,-7807.65252075,0.00024998,5]
[346044467,1734657038865,-251.569626,0.00024998,4]
[346044468,1734657038875,-599.697504,0.00024998,4]
[346044469,1734657038884,-150.12201,0.00024998,4]
[346044470,1734657038893,-150.12201,0.00024998,5]
[346044471,1734657038903,-500.0,0.00024998,4]
[346044472,1734657038912,-500.0,0.00024998,4]
[346044473,1734657038922,-500.0,0.00024998,4]
[346044474,1734657038931,-500.0,0.00024998,4]
[346044475,1734657038941,-563.65800517,0.00024998,4]
[346044476,1734657038951,-500.0,0.00024998,4]
[346044477,1734657038960,-500.0,0.00024998,4]
[346044478,1734657038969,-575.27925938,0.00024998,4]
[346044479,1734657038979,-500.0,0.00024998,4]
[346044480,1734657038988,-500.0,0.00024998,4]
[346044481,1734657038997,-500.0,0.00024998,4]
[346044482,1734657039006,-500.0,0.00024998,4]
[346044483,1734657039015,-500.0,0.00024998,4]
[346044484,1734657039025,-500.0,0.00024998,4]
[346044485,1734657039034,-500.0,0.00024998,4]
[346044486,1734657039043,-500.0,0.00024998,4]
[346044487,1734657039053,-500.0,0.00024998,4]
[346044488,1734657039063,-505.27155897,0.00024998,4]
[346044489,1734657039073,-222.12201,0.00024998,14]
[346044490,1734657039083,-500.0,0.00024998,4]
[346044491,1734657039094,-157.12201,0.00024998,13]
[346044492,1734657039103,-157.12201,0.00024998,12]
[346044493,1734657039113,-157.12201,0.00024998,11]
[346044494,1734657039122,-157.12201,0.00024998,10]
[346044495,1734657039132,-157.12201,0.00024998,7]
[346044496,1734657039142,-157.12201,0.00024998,3]
[346044497,1734657039151,-500.0,0.00024998,4]
[346044498,1734657039161,-500.0,0.00024998,4]
[346044499,1734657039170,-157.12201,0.00024998,6]
[346044500,1734657039181,-500.0,0.00024998,4]
[346044501,1734657039191,-500.0,0.00024998,4]
[346044502,1734657039200,-500.0,0.00024998,4]
[346044503,1734657039210,-500.0,0.00024998,4]
[346044504,1734657039219,-500.0,0.00024998,4]
[346044505,1734657039229,-500.0,0.00024998,4]
[346044506,1734657039238,-500.0,0.00024998,4]
[346044507,1734657039248,-500.0,0.00024998,4]
[346044508,1734657039257,-500.0,0.00024998,4]
[346044509,1734657039267,-500.0,0.00024998,4]
[346044510,1734657039277,-500.0,0.00024998,4]
[346044511,1734657039286,-584.28983936,0.00024998,4]
[346044512,1734657039296,-500.0,0.00024998,4]
[346044513,1734657039305,-500.0,0.00024998,4]
[346044514,1734657039314,-500.0,0.00024998,4]
[346044515,1734657039323,-500.0,0.00024998,4]
[346044516,1734657039332,-500.0,0.00024998,4]
[346044517,1734657039341,-421.26,0.00024998,4]
[346044518,1734657039351,-279.19701215,0.00024998,4]
[346044519,1734657039361,-500.0,0.00024998,4]
[346044520,1734657039371,-500.0,0.00024998,4]
[346044521,1734657039380,-629.44697174,0.00024998,4]
[346044522,1734657039390,-472.86430938,0.00024998,4]
[346044523,1734657039399,-500.0,0.00024998,4]
[346044524,1734657039409,-500.0,0.00024998,4]
[346044525,1734657039419,-500.0,0.00024998,4]
[346044526,1734657039428,-500.0,0.00024998,4]
[346044527,1734657039440,-500.0,0.00024998,4]
[346044528,1734657039450,-500.0,0.00024998,4]
[346044529,1734657039461,-500.0,0.00024998,4]
[346044530,1734657039471,-500.0,0.00024998,4]
[346044531,1734657039480,-500.0,0.00024998,4]
[346044532,1734657039490,-500.0,0.00024998,4]
[346044533,1734657039499,-500.0,0.00024998,4]
[346044534,1734657039508,-500.0,0.00024998,4]
[346044535,1734657039518,-500.0,0.00024998,2]
[346044536,1734657039528,-500.0,0.00024998,4]
[346044537,1734657039536,-500.0,0.00024998,4]
[346044538,1734657039546,-505.09,0.00024998,4]
[346044539,1734657039554,-500.0,0.00024998,4]
[346044540,1734657039563,-246.6,0.00024998,4]
[346044541,1734657039572,-557.84638649,0.00024998,4]
[346044542,1734657039585,-500.0,0.00024998,2]
[346044543,1734657039594,-500.0,0.00024998,4]
[346044544,1734657039604,-500.0,0.00024998,4]
[346044545,1734657039613,-500.0,0.00024998,4]
[346044546,1734657039622,-500.0,0.00024998,4]
[346044547,1734657039634,-500.0,0.00024998,4]
[346044548,1734657039643,-500.0,0.00024998,4]
[346044549,1734657039653,-500.0,0.00024998,4]
[346044550,1734657039665,-500.0,0.00024998,4]
[346044551,1734657039674,-500.0,0.00024998,4]
[346044552,1734657039683,-500.0,0.00024998,4]
[346044553,1734657039692,-500.0,0.00024998,4]
[346044554,1734657039701,-500.0,0.00024998,4]
[346044555,1734657039711,-462.23978751,0.00024998,4]
[346044556,1734657039720,-500.0,0.00024998,4]
[346044557,1734657039729,-500.0,0.00024998,4]
[346044558,1734657039738,-500.0,0.00024998,4]
[346044559,1734657039747,-500.0,0.00024998,4]
[346044560,1734657039757,-500.0,0.00024998,4]
[346044561,1734657039766,-500.0,0.00024998,4]
[346044562,1734657039776,-500.0,0.00024998,4]